[Event "Titled Tuesday Blitz December 7 2021"]
[White "Csonka, Balazs"]
[Black "Holtel, Jasper"]
[WhiteFideId "742910"]
[BlackFideId "12956376"]
[WhiteElo "2404"]
[BlackElo "2380"]
[Result "0-1"]
[Round "07"]
[TimeControl "180+1"]
[Date "2021.12.07"]
[WhiteClock "0:00:03"]
[BlackClock "0:00:01"]

1. d4 {[%clk 0:03:00]}  d5 {[%clk 0:02:59]} 2. Bf4 {[%clk 0:02:58]}  e6 {[%clk 0:02:58]} 3. e3 {[%clk 0:02:57]}  Nf6 {[%clk 0:02:57]} 4. Nf3 {[%clk 0:02:57]}  c5 {[%clk 0:02:57]} 5. c3 {[%clk 0:02:57]}  Nc6 {[%clk 0:02:57]} 6. Nbd2 {[%clk 0:02:57]}  cxd4 {[%clk 0:02:57]} 7. exd4 {[%clk 0:02:57]}  Nh5 {[%clk 0:02:57]} 8. Be3 {[%clk 0:02:51]}  Bd6 {[%clk 0:02:56]} 9. Ne5 {[%clk 0:02:50]}  g6 {[%clk 0:02:51]} 10. g4 {[%clk 0:02:48]}  Ng7 {[%clk 0:02:50]} 11. h4 {[%clk 0:02:48]}  Nxe5 {[%clk 0:02:47]} 12. dxe5 {[%clk 0:02:49]}  Bxe5 {[%clk 0:02:48]} 13. Nf3 {[%clk 0:02:47]}  Bd6 {[%clk 0:02:45]} 14. Bb5+ {[%clk 0:02:26]}  Bd7 {[%clk 0:02:44]} 15. Bxd7+ {[%clk 0:02:21]}  Qxd7 {[%clk 0:02:45]} 16. Bd4 {[%clk 0:02:20]}  Rg8 {[%clk 0:02:32]} 17. Ne5 {[%clk 0:01:55]}  Bxe5 {[%clk 0:02:18]} 18. Bxe5 {[%clk 0:01:56]}  O-O-O {[%clk 0:01:18]} 19. Qd4 {[%clk 0:01:54]}  Ne8 {[%clk 0:01:11]} 20. Qxa7 {[%clk 0:01:46]}  Qb5 {[%clk 0:00:46]} 21. a4 {[%clk 0:01:07]}  Qa6 {[%clk 0:00:35]} 22. Qc5+ {[%clk 0:00:46]}  Qc6 {[%clk 0:00:33]} 23. Qb4 {[%clk 0:00:38]}  Nd6 {[%clk 0:00:32]} 24. a5 {[%clk 0:00:33]}  Nc4 {[%clk 0:00:32]} 25. Bg3 {[%clk 0:00:28]}  f5 {[%clk 0:00:20]} 26. b3 {[%clk 0:00:17]}  Nd6 {[%clk 0:00:13]} 27. O-O {[%clk 0:00:11]}  Ne4 {[%clk 0:00:12]} 28. Be5 {[%clk 0:00:06]}  fxg4 {[%clk 0:00:10]} 29. c4 {[%clk 0:00:05]}  g3 {[%clk 0:00:10]} 30. fxg3 {[%clk 0:00:04]}  Qc5+ {[%clk 0:00:10]} 31. Qxc5+ {[%clk 0:00:04]}  Nxc5 {[%clk 0:00:11]} 32. Rf7 {[%clk 0:00:02]}  Nd3 {[%clk 0:00:09]} 33. Rc7+ {[%clk 0:00:02]}  Kb8 {[%clk 0:00:09]} 34. Rxh7+ {[%clk 0:00:01]}  Nxe5 {[%clk 0:00:08]} 35. cxd5 {[%clk 0:00:02]}  exd5 {[%clk 0:00:08]} 36. a6 {[%clk 0:00:03]}  Rd7 {[%clk 0:00:07]} 37. Rxd7 {[%clk 0:00:02]}  Nxd7 {[%clk 0:00:07]} 38. Rd1 {[%clk 0:00:02]}  Nb6 {[%clk 0:00:06]} 39. axb7 {[%clk 0:00:02]}  Kxb7 {[%clk 0:00:07]} 40. Kg2 {[%clk 0:00:02]}  Rd8 {[%clk 0:00:07]} 41. Kf3 {[%clk 0:00:03]}  d4 {[%clk 0:00:07]} 42. Kf4 {[%clk 0:00:03]}  d3 {[%clk 0:00:06]} 43. Ke3 {[%clk 0:00:03]}  d2 {[%clk 0:00:07]} 44. Rxd2 {[%clk 0:00:03]}  Rxd2 {[%clk 0:00:06]} 45. Kxd2 {[%clk 0:00:04]}  Kc6 {[%clk 0:00:07]} 46. Ke3 {[%clk 0:00:04]}  Kd5 {[%clk 0:00:07]} 47. Kf4 {[%clk 0:00:05]}  Ke6 {[%clk 0:00:07]} 48. Kg5 {[%clk 0:00:05]}  Kf7 {[%clk 0:00:07]} 49. Kh6 {[%clk 0:00:05]}  Nd5 {[%clk 0:00:06]} 50. g4 {[%clk 0:00:04]}  Nf6 {[%clk 0:00:06]} 51. g5 {[%clk 0:00:02]}  Ng4+ {[%clk 0:00:06]} 52. Kh7 {[%clk 0:00:02]}  Ne3 {[%clk 0:00:05]} 53. h5 {[%clk 0:00:01]}  gxh5 {[%clk 0:00:05]} 54. g6+ {[%clk 0:00:01]}  Ke7 {[%clk 0:00:02]} 55. g7 {[%clk 0:00:02]}  Nd5 {[%clk 0:00:01]} 56. Kg6 {[%clk 0:00:03]}  Nf6 {[%clk 0:00:01]} 0-1


[Site "https://www.chess.com"]

[Event "Titled Tuesday Blitz December 7 2021"]
[White "Cvetanovic, Uros"]
[Black "Ianov, Viktor"]
[WhiteFideId "900672"]
[BlackFideId "14102730"]
[WhiteElo "2282"]
[BlackElo "2307"]
[Result "0-1"]
[Round "07"]
[TimeControl "180+1"]
[Date "2021.12.07"]
[WhiteClock "0:00:01"]
[BlackClock "0:01:12"]

1. Nc3 {[%clk 0:02:59]}  d6 {[%clk 0:02:58]} 2. e4 {[%clk 0:02:59]}  Nf6 {[%clk 0:02:57]} 3. d4 {[%clk 0:03:00]}  c6 {[%clk 0:02:57]} 4. f4 {[%clk 0:03:00]}  Qb6 {[%clk 0:02:57]} 5. Nf3 {[%clk 0:02:58]}  Bg4 {[%clk 0:02:57]} 6. e5 {[%clk 0:02:54]}  Nd5 {[%clk 0:02:56]} 7. Bc4 {[%clk 0:02:47]}  e6 {[%clk 0:02:52]} 8. Ne4 {[%clk 0:02:32]}  dxe5 {[%clk 0:02:49]} 9. c3 {[%clk 0:01:46]}  exd4 {[%clk 0:02:39]} 10. h3 {[%clk 0:01:30]}  Bxf3 {[%clk 0:02:32]} 11. Qxf3 {[%clk 0:01:31]}  dxc3 {[%clk 0:02:30]} 12. bxc3 {[%clk 0:01:31]}  Nd7 {[%clk 0:02:30]} 13. Bd2 {[%clk 0:01:17]}  Be7 {[%clk 0:02:20]} 14. Ke2 {[%clk 0:01:04]}  O-O {[%clk 0:02:17]} 15. Rab1 {[%clk 0:01:04]}  Qc7 {[%clk 0:02:15]} 16. g4 {[%clk 0:01:00]}  Rae8 {[%clk 0:02:12]} 17. Bd3 {[%clk 0:00:56]}  f5 {[%clk 0:02:05]} 18. Ng3 {[%clk 0:00:48]}  Nc5 {[%clk 0:02:00]} 19. gxf5 {[%clk 0:00:37]}  Nxd3 {[%clk 0:01:56]} 20. Qxd3 {[%clk 0:00:36]}  exf5 {[%clk 0:01:55]} 21. Kf3 {[%clk 0:00:36]}  g6 {[%clk 0:01:52]} 22. h4 {[%clk 0:00:23]}  h5 {[%clk 0:01:49]} 23. Rbg1 {[%clk 0:00:20]}  Kh7 {[%clk 0:01:49]} 24. c4 {[%clk 0:00:18]}  Nb6 {[%clk 0:01:39]} 25. Be3 {[%clk 0:00:14]}  Rd8 {[%clk 0:01:39]} 26. Qc2 {[%clk 0:00:14]}  Qd7 {[%clk 0:01:32]} 27. Rd1 {[%clk 0:00:10]}  Qe6 {[%clk 0:01:32]} 28. Bxb6 {[%clk 0:00:10]}  axb6 {[%clk 0:01:30]} 29. Rhe1 {[%clk 0:00:09]}  Qf6 {[%clk 0:01:28]} 30. Rb1 {[%clk 0:00:05]}  Qxh4 {[%clk 0:01:25]} 31. Rh1 {[%clk 0:00:04]}  Qg4+ {[%clk 0:01:25]} 32. Kg2 {[%clk 0:00:04]}  Bc5 {[%clk 0:01:19]} 33. Rbf1 {[%clk 0:00:04]}  Be3 {[%clk 0:01:17]} 34. Rh3 {[%clk 0:00:02]}  Rd2+ {[%clk 0:01:16]} 35. Qxd2 {[%clk 0:00:02]}  Bxd2 {[%clk 0:01:16]} 36. Rfh1 {[%clk 0:00:03]}  Bxf4 {[%clk 0:01:15]} 37. Kf2 {[%clk 0:00:02]}  Bxg3+ {[%clk 0:01:13]} 38. Rxg3 {[%clk 0:00:01]}  Qxc4 {[%clk 0:01:12]} 0-1


[Site "https://www.chess.com"]

[Event "Titled Tuesday Blitz December 7 2021"]
[White "Dmitrenko, Viktor"]
[Black "Yang, Kaiqi"]
[WhiteFideId "14110270"]
[BlackFideId "8604398"]
[WhiteElo "2262"]
[BlackElo "2373"]
[Result "1-0"]
[Round "07"]
[TimeControl "180+1"]
[Date "2021.12.07"]
[WhiteClock "0:00:14"]
[BlackClock "0:00:01"]

1. e4 {[%clk 0:03:00]}  c5 {[%clk 0:02:59]} 2. Nf3 {[%clk 0:02:58]}  Nf6 {[%clk 0:02:59]} 3. e5 {[%clk 0:02:54]}  Nd5 {[%clk 0:03:00]} 4. Nc3 {[%clk 0:02:55]}  Nxc3 {[%clk 0:02:59]} 5. dxc3 {[%clk 0:02:56]}  Nc6 {[%clk 0:03:00]} 6. Bf4 {[%clk 0:02:54]}  Qb6 {[%clk 0:03:00]} 7. b3 {[%clk 0:02:51]}  Qc7 {[%clk 0:03:00]} 8. Qd2 {[%clk 0:02:45]}  e6 {[%clk 0:03:00]} 9. h4 {[%clk 0:02:44]}  h6 {[%clk 0:03:00]} 10. h5 {[%clk 0:02:43]}  a6 {[%clk 0:03:00]} 11. Bd3 {[%clk 0:02:34]}  b5 {[%clk 0:02:59]} 12. Be4 {[%clk 0:02:34]}  Bb7 {[%clk 0:02:58]} 13. Rd1 {[%clk 0:02:20]}  Rd8 {[%clk 0:02:46]} 14. O-O {[%clk 0:02:16]}  Ne7 {[%clk 0:02:28]} 15. Rfe1 {[%clk 0:01:47]}  Bxe4 {[%clk 0:02:14]} 16. Rxe4 {[%clk 0:01:46]}  Qc6 {[%clk 0:01:54]} 17. Qe2 {[%clk 0:01:44]}  Nd5 {[%clk 0:01:50]} 18. Bd2 {[%clk 0:01:39]}  Be7 {[%clk 0:01:42]} 19. c4 {[%clk 0:01:38]}  Nb6 {[%clk 0:01:34]} 20. Rg4 {[%clk 0:01:31]}  Kf8 {[%clk 0:01:13]} 21. Ba5 {[%clk 0:01:11]}  b4 {[%clk 0:00:45]} 22. Qe4 {[%clk 0:01:02]}  Qc7 {[%clk 0:00:31]} 23. Rf4 {[%clk 0:00:58]}  Ke8 {[%clk 0:00:30]} 24. Rd3 {[%clk 0:00:46]}  Rb8 {[%clk 0:00:20]} 25. Nd2 {[%clk 0:00:32]}  Qb7 {[%clk 0:00:18]} 26. Qe2 {[%clk 0:00:26]}  Nc8 {[%clk 0:00:16]} 27. Ne4 {[%clk 0:00:23]}  Qc6 {[%clk 0:00:16]} 28. Rdf3 {[%clk 0:00:21]}  Rf8 {[%clk 0:00:15]} 29. Rg3 {[%clk 0:00:20]}  Rg8 {[%clk 0:00:10]} 30. Nf6+ {[%clk 0:00:20]}  Bxf6 {[%clk 0:00:08]} 31. exf6 {[%clk 0:00:21]}  Qd6 {[%clk 0:00:04]} 32. Rxg7 {[%clk 0:00:18]}  Rh8 {[%clk 0:00:01]} 33. Rfg4 {[%clk 0:00:17]}  Kf8 {[%clk 0:00:01]} 34. Qe3 {[%clk 0:00:14]} 1-0


[Site "https://www.chess.com"]

[Event "Titled Tuesday Blitz December 7 2021"]
[White "Druska, Juraj"]
[Black "Gabrielian, Artur"]
[WhiteFideId "14915650"]
[BlackFideId "4131002"]
[WhiteElo "2369"]
[BlackElo "2440"]
[Result "0-1"]
[Round "07"]
[TimeControl "180+1"]
[Date "2021.12.07"]
[WhiteClock "0:00:01"]
[BlackClock "0:00:02"]

1. d4 {[%clk 0:03:00]}  Nf6 {[%clk 0:02:59]} 2. Nf3 {[%clk 0:02:56]}  e6 {[%clk 0:02:59]} 3. Bf4 {[%clk 0:02:54]}  d5 {[%clk 0:02:58]} 4. e3 {[%clk 0:02:54]}  Bd6 {[%clk 0:02:58]} 5. Bg3 {[%clk 0:02:54]}  O-O {[%clk 0:02:58]} 6. c4 {[%clk 0:02:55]}  Bb4+ {[%clk 0:02:49]} 7. Nbd2 {[%clk 0:02:48]}  c5 {[%clk 0:02:48]} 8. a3 {[%clk 0:02:45]}  Bxd2+ {[%clk 0:02:46]} 9. Qxd2 {[%clk 0:02:45]}  Ne4 {[%clk 0:02:46]} 10. Qc2 {[%clk 0:02:39]}  Qa5+ {[%clk 0:02:44]} 11. Nd2 {[%clk 0:02:33]}  Nc6 {[%clk 0:02:41]} 12. dxc5 {[%clk 0:02:03]}  Rd8 {[%clk 0:02:37]} 13. Rd1 {[%clk 0:01:41]}  Nxg3 {[%clk 0:02:07]} 14. hxg3 {[%clk 0:01:38]}  h6 {[%clk 0:02:08]} 15. cxd5 {[%clk 0:01:25]}  Rxd5 {[%clk 0:02:00]} 16. Bc4 {[%clk 0:01:24]}  Rd8 {[%clk 0:01:43]} 17. Be2 {[%clk 0:01:22]}  Rd5 {[%clk 0:01:28]} 18. Bc4 {[%clk 0:01:09]}  Rd8 {[%clk 0:01:28]} 19. Bb3 {[%clk 0:01:03]}  b6 {[%clk 0:00:57]} 20. cxb6 {[%clk 0:00:52]}  Qxb6 {[%clk 0:00:32]} 21. O-O {[%clk 0:00:50]}  Ba6 {[%clk 0:00:30]} 22. Bc4 {[%clk 0:00:36]}  Rac8 {[%clk 0:00:27]} 23. Bxa6 {[%clk 0:00:32]}  Qxa6 {[%clk 0:00:26]} 24. Nf3 {[%clk 0:00:29]}  Nd4 {[%clk 0:00:19]} 25. Qe4 {[%clk 0:00:25]}  Ne2+ {[%clk 0:00:19]} 26. Kh2 {[%clk 0:00:23]}  Qb5 {[%clk 0:00:16]} 27. g4 {[%clk 0:00:20]}  Qxb2 {[%clk 0:00:15]} 28. Rxd8+ {[%clk 0:00:15]}  Rxd8 {[%clk 0:00:14]} 29. Rb1 {[%clk 0:00:14]}  Qxa3 {[%clk 0:00:13]} 30. Ne5 {[%clk 0:00:13]}  Nc3 {[%clk 0:00:13]} 31. Qf4 {[%clk 0:00:06]}  Rf8 {[%clk 0:00:06]} 32. Rb7 {[%clk 0:00:06]}  Ne2 {[%clk 0:00:07]} 33. Qc4 {[%clk 0:00:03]}  Qd6 {[%clk 0:00:04]} 34. f4 {[%clk 0:00:03]}  Qd1 {[%clk 0:00:02]} 35. Kh3 {[%clk 0:00:01]}  Qh1# {[%clk 0:00:02]} 0-1


[Site "https://www.chess.com"]

[Event "Titled Tuesday Blitz December 7 2021"]
[White "Fawzy, Adham"]
[Black "Manafov, Vugar"]
[WhiteFideId "10613129"]
[BlackFideId "13410814"]
[WhiteElo "2752"]
[BlackElo "2903"]
[Result "0-1"]
[Round "07"]
[TimeControl "180+1"]
[Date "2021.12.07"]
[WhiteClock "0:00:07"]
[BlackClock "0:01:18"]

1. e4 {[%clk 0:02:59]}  Nf6 {[%clk 0:03:00]} 2. e5 {[%clk 0:02:57]}  Nd5 {[%clk 0:03:01]} 3. Nc3 {[%clk 0:02:58]}  Nxc3 {[%clk 0:03:00]} 4. dxc3 {[%clk 0:02:59]}  g6 {[%clk 0:03:00]} 5. Nf3 {[%clk 0:02:58]}  Bg7 {[%clk 0:03:00]} 6. h4 {[%clk 0:02:58]}  Nc6 {[%clk 0:03:01]} 7. Bf4 {[%clk 0:02:57]}  d6 {[%clk 0:03:01]} 8. Bb5 {[%clk 0:02:56]}  Bg4 {[%clk 0:03:00]} 9. Qe2 {[%clk 0:02:51]}  a6 {[%clk 0:02:58]} 10. Bxc6+ {[%clk 0:02:28]}  bxc6 {[%clk 0:02:58]} 11. O-O-O {[%clk 0:02:28]}  O-O {[%clk 0:02:52]} 12. Qe3 {[%clk 0:02:13]}  Qd7 {[%clk 0:02:51]} 13. Bh6 {[%clk 0:02:06]}  Qe6 {[%clk 0:02:34]} 14. Bxg7 {[%clk 0:01:59]}  Kxg7 {[%clk 0:02:35]} 15. Qd4 {[%clk 0:01:53]}  c5 {[%clk 0:02:33]} 16. Qd5 {[%clk 0:01:41]}  Qxd5 {[%clk 0:02:25]} 17. Rxd5 {[%clk 0:01:40]}  f6 {[%clk 0:02:20]} 18. exd6 {[%clk 0:01:26]}  exd6 {[%clk 0:02:12]} 19. Rd3 {[%clk 0:01:17]}  Rfe8 {[%clk 0:02:11]} 20. Re1 {[%clk 0:01:18]}  Rxe1+ {[%clk 0:02:06]} 21. Nxe1 {[%clk 0:01:19]}  Re8 {[%clk 0:02:07]} 22. Re3 {[%clk 0:00:57]}  Rxe3 {[%clk 0:02:07]} 23. fxe3 {[%clk 0:00:58]}  Kh6 {[%clk 0:02:07]} 24. Kd2 {[%clk 0:00:55]}  Kh5 {[%clk 0:02:07]} 25. g3 {[%clk 0:00:56]}  Be6 {[%clk 0:02:04]} 26. Ke2 {[%clk 0:00:50]}  Kg4 {[%clk 0:02:01]} 27. Kf2 {[%clk 0:00:50]}  Bxa2 {[%clk 0:01:55]} 28. b3 {[%clk 0:00:49]}  a5 {[%clk 0:01:56]} 29. c4 {[%clk 0:00:19]}  Bb1 {[%clk 0:01:55]} 30. e4 {[%clk 0:00:18]}  Kh3 {[%clk 0:01:51]} 31. Kf3 {[%clk 0:00:13]}  h5 {[%clk 0:01:42]} 32. Kf2 {[%clk 0:00:12]}  Kg4 {[%clk 0:01:40]} 33. Ng2 {[%clk 0:00:11]}  g5 {[%clk 0:01:36]} 34. Ne3+ {[%clk 0:00:09]}  Kh3 {[%clk 0:01:36]} 35. hxg5 {[%clk 0:00:08]}  fxg5 {[%clk 0:01:37]} 36. Kf3 {[%clk 0:00:09]}  g4+ {[%clk 0:01:33]} 37. Kf4 {[%clk 0:00:07]}  Kh2 {[%clk 0:01:22]} 38. c3 {[%clk 0:00:01]}  Bd3 {[%clk 0:01:19]} 39. b4 {[%clk 0:00:01]}  cxb4 {[%clk 0:01:19]} 40. cxb4 {[%clk 0:00:02]}  axb4 {[%clk 0:01:19]} 41. Nd1 {[%clk 0:00:03]}  b3 {[%clk 0:01:19]} 42. Nb2 {[%clk 0:00:04]}  Bc2 {[%clk 0:01:19]} 43. Na4 {[%clk 0:00:04]}  h4 {[%clk 0:01:19]} 44. gxh4 {[%clk 0:00:05]}  g3 {[%clk 0:01:19]} 45. Nc3 {[%clk 0:00:04]}  g2 {[%clk 0:01:20]} 46. Ne2 {[%clk 0:00:05]}  b2 {[%clk 0:01:17]} 47. h5 {[%clk 0:00:05]}  b1=Q {[%clk 0:01:17]} 48. h6 {[%clk 0:00:06]}  Bxe4 {[%clk 0:01:18]} 49. h7 {[%clk 0:00:05]}  Bxh7 {[%clk 0:01:18]} 50. Ng3 {[%clk 0:00:06]}  Qb8 {[%clk 0:01:17]} 51. Kg5 {[%clk 0:00:07]}  Qg8+ {[%clk 0:01:17]} 52. Kh5 {[%clk 0:00:07]}  Qg6+ {[%clk 0:01:17]} 53. Kh4 {[%clk 0:00:06]}  Qxg3+ {[%clk 0:01:17]} 54. Kh5 {[%clk 0:00:07]}  Qg6+ {[%clk 0:01:17]} 55. Kh4 {[%clk 0:00:07]}  g1=Q {[%clk 0:01:18]} 0-1


[Site "https://www.chess.com"]

[Event "Titled Tuesday Blitz December 7 2021"]
[White "Goryachkina, Aleksandra"]
[Black "Le, Tuan Minh"]
[WhiteFideId "4147103"]
[BlackFideId "12401153"]
[WhiteElo "2441"]
[BlackElo "2450"]
[Result "0-1"]
[Round "07"]
[TimeControl "180+1"]
[Date "2021.12.07"]
[WhiteClock "0:00:02"]
[BlackClock "0:00:31"]

1. e4 {[%clk 0:02:59]}  c5 {[%clk 0:03:00]} 2. Nf3 {[%clk 0:02:59]}  Nf6 {[%clk 0:03:00]} 3. Nc3 {[%clk 0:02:55]}  d5 {[%clk 0:03:00]} 4. Bb5+ {[%clk 0:02:52]}  Bd7 {[%clk 0:03:00]} 5. Bxd7+ {[%clk 0:02:52]}  Qxd7 {[%clk 0:02:59]} 6. exd5 {[%clk 0:02:48]}  Nxd5 {[%clk 0:03:00]} 7. O-O {[%clk 0:02:34]}  Nc6 {[%clk 0:02:57]} 8. Ne4 {[%clk 0:02:29]}  e6 {[%clk 0:02:54]} 9. d3 {[%clk 0:02:22]}  Be7 {[%clk 0:02:51]} 10. Re1 {[%clk 0:02:14]}  O-O {[%clk 0:02:47]} 11. Ng3 {[%clk 0:02:04]}  Rac8 {[%clk 0:02:44]} 12. Bg5 {[%clk 0:01:59]}  Rfd8 {[%clk 0:02:38]} 13. Bxe7 {[%clk 0:01:58]}  Qxe7 {[%clk 0:02:39]} 14. Qe2 {[%clk 0:01:54]}  Qf6 {[%clk 0:02:36]} 15. Rab1 {[%clk 0:01:44]}  h6 {[%clk 0:02:32]} 16. Ne4 {[%clk 0:01:36]}  Qe7 {[%clk 0:02:31]} 17. g3 {[%clk 0:01:27]}  b6 {[%clk 0:02:30]} 18. Rbd1 {[%clk 0:01:24]}  Nf6 {[%clk 0:02:19]} 19. Kg2 {[%clk 0:01:09]}  Rd7 {[%clk 0:02:18]} 20. Nxf6+ {[%clk 0:00:45]}  Qxf6 {[%clk 0:02:18]} 21. Ne5 {[%clk 0:00:44]}  Nxe5 {[%clk 0:02:18]} 22. Qxe5 {[%clk 0:00:44]}  Qd8 {[%clk 0:02:18]} 23. b3 {[%clk 0:00:42]}  Rd5 {[%clk 0:02:18]} 24. Qe4 {[%clk 0:00:41]}  Qd7 {[%clk 0:02:19]} 25. h4 {[%clk 0:00:40]}  Rd8 {[%clk 0:02:19]} 26. Rd2 {[%clk 0:00:36]}  b5 {[%clk 0:02:19]} 27. Rde2 {[%clk 0:00:36]}  Qc7 {[%clk 0:02:15]} 28. Qf3 {[%clk 0:00:34]}  c4 {[%clk 0:02:15]} 29. dxc4 {[%clk 0:00:32]}  bxc4 {[%clk 0:02:15]} 30. Re4 {[%clk 0:00:32]}  cxb3 {[%clk 0:02:06]} 31. cxb3 {[%clk 0:00:32]}  Rf5 {[%clk 0:02:07]} 32. Qe2 {[%clk 0:00:29]}  Qc6 {[%clk 0:02:02]} 33. Kg1 {[%clk 0:00:29]}  Qb6 {[%clk 0:01:58]} 34. Qe3 {[%clk 0:00:25]}  Qa5 {[%clk 0:01:52]} 35. a4 {[%clk 0:00:22]}  Rfd5 {[%clk 0:01:42]} 36. Re5 {[%clk 0:00:18]}  Rxe5 {[%clk 0:01:34]} 37. Qxe5 {[%clk 0:00:18]}  Qb4 {[%clk 0:01:34]} 38. Qe3 {[%clk 0:00:16]}  a5 {[%clk 0:01:26]} 39. Rc1 {[%clk 0:00:15]}  Qb7 {[%clk 0:01:24]} 40. Qc3 {[%clk 0:00:07]}  Qa7 {[%clk 0:00:53]} 41. Qc5 {[%clk 0:00:02]}  Qa8 {[%clk 0:00:48]} 42. Qc6 {[%clk 0:00:01]}  Qb8 {[%clk 0:00:37]} 43. Qc5 {[%clk 0:00:01]}  Qxb3 {[%clk 0:00:34]} 44. Qxa5 {[%clk 0:00:02]}  Rd5 {[%clk 0:00:31]} 0-1


[Site "https://www.chess.com"]

[Event "Titled Tuesday Blitz December 7 2021"]
[White "Ibrahimli, Murad"]
[Black "Vypkhaniuk, Ihor"]
[WhiteFideId "13410229"]
[BlackFideId "14112256"]
[WhiteElo "2109"]
[BlackElo "2327"]
[Result "1-0"]
[Round "07"]
[TimeControl "180+1"]
[Date "2021.12.07"]
[WhiteClock "0:00:29"]
[BlackClock "0:00:02"]

1. Nf3 {[%clk 0:03:00]}  Nf6 {[%clk 0:02:59]} 2. d4 {[%clk 0:03:00]}  g6 {[%clk 0:02:56]} 3. c4 {[%clk 0:02:59]}  c5 {[%clk 0:02:56]} 4. d5 {[%clk 0:02:58]}  b5 {[%clk 0:02:56]} 5. Qc2 {[%clk 0:02:57]}  d6 {[%clk 0:02:42]} 6. e4 {[%clk 0:02:57]}  b4 {[%clk 0:02:43]} 7. h3 {[%clk 0:02:55]}  Bg7 {[%clk 0:02:43]} 8. Bd3 {[%clk 0:02:56]}  O-O {[%clk 0:02:35]} 9. O-O {[%clk 0:02:55]}  a5 {[%clk 0:02:35]} 10. a4 {[%clk 0:02:53]}  e6 {[%clk 0:02:12]} 11. Bf4 {[%clk 0:02:47]}  Nh5 {[%clk 0:02:10]} 12. Bg5 {[%clk 0:02:46]}  Bf6 {[%clk 0:02:07]} 13. Be3 {[%clk 0:02:45]}  e5 {[%clk 0:02:02]} 14. Nbd2 {[%clk 0:02:42]}  Nf4 {[%clk 0:01:57]} 15. Rae1 {[%clk 0:02:27]}  Kg7 {[%clk 0:01:48]} 16. Bxf4 {[%clk 0:02:25]}  exf4 {[%clk 0:01:48]} 17. e5 {[%clk 0:02:26]}  dxe5 {[%clk 0:01:47]} 18. Nxe5 {[%clk 0:02:26]}  Bxe5 {[%clk 0:01:41]} 19. Rxe5 {[%clk 0:02:27]}  Nd7 {[%clk 0:01:41]} 20. Re2 {[%clk 0:02:26]}  Nf6 {[%clk 0:01:40]} 21. b3 {[%clk 0:02:24]}  Qd6 {[%clk 0:01:38]} 22. Qb2 {[%clk 0:02:24]}  Kg8 {[%clk 0:01:36]} 23. Rfe1 {[%clk 0:02:23]}  Bd7 {[%clk 0:01:36]} 24. Nf3 {[%clk 0:02:20]}  Rae8 {[%clk 0:01:34]} 25. Ne5 {[%clk 0:02:18]}  Nh5 {[%clk 0:01:06]} 26. Bb1 {[%clk 0:01:52]}  f6 {[%clk 0:01:02]} 27. Nf3 {[%clk 0:01:19]}  Rxe2 {[%clk 0:00:58]} 28. Rxe2 {[%clk 0:01:18]}  Re8 {[%clk 0:00:56]} 29. Rxe8+ {[%clk 0:01:09]}  Bxe8 {[%clk 0:00:57]} 30. Qe2 {[%clk 0:01:10]}  Bd7 {[%clk 0:00:55]} 31. Nd2 {[%clk 0:01:10]}  f5 {[%clk 0:00:34]} 32. Nf3 {[%clk 0:01:10]}  Nf6 {[%clk 0:00:32]} 33. Bd3 {[%clk 0:01:04]}  Kg7 {[%clk 0:00:31]} 34. Kf1 {[%clk 0:00:56]}  h6 {[%clk 0:00:30]} 35. Ne5 {[%clk 0:00:55]}  Qe7 {[%clk 0:00:20]} 36. Bc2 {[%clk 0:00:43]}  Qd6 {[%clk 0:00:16]} 37. Nd3 {[%clk 0:00:36]}  Ne4 {[%clk 0:00:14]} 38. Kg1 {[%clk 0:00:33]}  g5 {[%clk 0:00:10]} 39. f3 {[%clk 0:00:30]}  Qf6 {[%clk 0:00:03]} 40. fxe4 {[%clk 0:00:28]}  Qd4+ {[%clk 0:00:04]} 41. Nf2 {[%clk 0:00:28]}  fxe4 {[%clk 0:00:02]} 42. Qxe4 {[%clk 0:00:29]} 1-0


[Site "https://www.chess.com"]